Cogmind - Beta 15 @@@ ROGUE MODE // 2025.06.20 @ 17:37:08 Player: Amberulez Result: Destroyed by D-53 Grenadier with Mini Grenade Launcher Performance ------------- Evolutions (0) 0 Regions Visited (2) 400 Robots Destroyed (23) 115 Value Destroyed (494) 494 Prototype IDs (3) 60 Alien Tech Used (0) 0 Bonus (0) 0 TOTAL SCORE: 1069 Bonus ------- None Cogmind --------- Core Integrity 0/250 Matter 275/300 Energy 100/100 System Corruption 1% Temperature Cool (0) Movement Core (400) Ox7 Location -10/Mines Parts ------- > --- POWER (1) -------- (None) > --- PROPULSION (2) --- (None) > --- UTILITY (2) ------ Large Storage Unit > --- WEAPON (2) ------- Makeshift Axe > --- INVENTORY (15) --- Light Ion Engine Light Treads Light Treads Light Treads Small Storage Unit High-capacity Storage Unit High-capacity Matter Pod (200) Hacking Suite Assault Rifle Light Cannon Mining Laser Peak State ------------ > --- POWER ------------ Ion Engine > --- PROPULSION ------- Wheel Wheel > --- UTILITY ---------- Large Storage Unit > --- WEAPON ----------- Light Cannon Makeshift Axe > --- INVENTORY -------- Light Ion Engine Light Treads Light Treads Light Treads Small Storage Unit High-capacity Storage Unit High-capacity Matter Pod Hacking Suite Assault Rifle Light Cannon Mining Laser [Rating: 10] Favorites ----------- Power Ion Engine Engine Ion Engine Propulsion Light Treads Treads Light Treads Wheel Wheel Utility Small Storage Unit Storage Small Storage Unit Protection Light Armor Plating Weapon Assault Rifle Energy Gun Medium Laser Energy Cannon Beam Cannon Ballistic Gun Assault Rifle Ballistic Cannon Light Cannon Special Weapon Mining Laser Slashing Weapon Makeshift Axe Build | -11 -10 -10 ------- Run | Yrd Mat Min Slots Evolved . | . . . Power . | . . . Propulsion . | . . . Utility . | . . . Weapon . | . . . Parts Attached 21 | 7 11 3 Power 2 | 2 . . Engine 2 | 2 . . Core . | . . . Reactor . | . . . Propulsion 7 | 2 3 2 Treads 5 | 2 3 . Leg . | . . . Wheel 2 | . . 2 Hover . | . . . Flight . | . . . Utility 4 | 1 3 . Device . | . . . Storage 3 | 1 2 . Processor . | . . . Hackware . | . . . Protection 1 | . 1 . Artifact . | . . . Weapon 8 | 2 5 1 Energy Gun 2 | 2 . . Energy Cannon 1 | . 1 . Ballistic Gun 1 | . 1 . Ballistic Cannon 2 | . 2 . Launcher . | . . . Special Weapon 1 | . 1 . Impact Weapon . | . . . Slashing Weapon 1 | . . 1 Piercing Weapon . | . . . Special Melee Weapon . | . . . Unidentified Prototypes . | . . . Parts Lost 5 | . 1 4 Power 1 | . . 1 Propulsion 2 | . . 2 Utility 1 | . 1 . Weapon 1 | . . 1 Highest Loss Streak 4 | . 1 4 To Critical Strikes . | . . . Average Backups 7 | 3 8 10 Power . | . 1 1 Propulsion 2 | 1 2 3 Utility 2 | . 2 4 Weapon 1 | . 1 2 Tool/Special . | . . . Unused Backups 6 | . 4 2 Power . | . . . Propulsion 2 | . 2 . Utility 3 | . 1 2 Weapon 1 | . 1 . Tool/Special . | . . . Average Slot Usage (%) 84 | . 85 80 Engine 13 | . 14 12 Treads 26 | . 28 1 Wheel 1 | . . 24 Storage 14 | . 14 14 Energy Cannon 7 | . 8 . Ballistic Gun 9 | . 10 . Ballistic Cannon 8 | . 7 24 Peak Build Rating 10 | 6 8 10 Average Rating 6 | 5 6 7 On Entrance 4 | . 6 7 Naked Turns . | . . . Heaviest Build 32 | 13 32 31 Greatest Support 40 | 40 40 20 Greatest Overweight (x) 7 | . . 7 Average Overweight (x) . | . . 1 Largest Inventory Capacity 20 | 8 20 15 Average Capacity 9 | 7 9 15 Most Carried 11 | 6 10 11 Average Carried 8 | 3 8 10 Final Capacity 15 | 8 15 15 Final Carried 11 | 6 10 11 Class Distribution -------------------- 100% | Mutant Dominant Class ---------------- Mutant | -10/Materials Mutant | -10/Mines Resources | -11 -10 -10 ----------- Run | Yrd Mat Min Matter Collected 922 | 172 750 . Remotely . | . . . Salvage Created 598 | . 598 . Parts 43 | . 43 . Haulers Intercepted 2 | . 2 . Recyclers Shooed . | . . . Parts Field Recycled . | . . . Retrieved Matter . | . . . Parts Self-Destructed . | . . . Prevented . | . . . Kills | -11 -10 -10 ------- Run | Yrd Mat Min Combat Hostiles Destroyed 14 | . 14 . Guns 6 | . 6 . Cannons 8 | . 8 . Classes Destroyed 7 | . 7 . Worker 1 | . 1 . Tunneler 1 | . 1 . Hauler 2 | . 2 . Operator 3 | . 3 . Watcher 2 | . 2 . Swarmer 5 | . 5 . Grunt 9 | . 9 . Best Kill Streak 5 | . 5 . Combat Bots Only 5 | . 5 . Max Kills in Single Turn 1 | . 1 . Gunslinging . | . . . Exploded . | . . . Melee . | . . . Uniques/NPCs Destroyed . | . . . Combat | -11 -10 -10 -------- Run | Yrd Mat Min Hostile Shots Fired 73 | . 57 16 Missed 19 | . 16 3 Hits 54 | . 41 13 Projectile 54 | . 41 13 AOE 11 | . . 11 Damage Taken 1043 | . 591 452 Core 259 | . 50 209 Absorbed by Shields . | . . . Core Remaining (%) 100 | 100 . . Volleys Fired 99 | . 99 . Largest 2 | . 2 . Hottest 100 | . 100 . Shots Fired 152 | . 152 . Gun 85 | . 85 . Cannon 62 | . 62 . Launcher . | . . . Special 5 | . 5 . Kinetic 103 | . 103 . Thermal 49 | . 49 . Explosive . | . . . Electromagnetic . | . . . Robot Hit Streak 13 | . 13 . Robot Miss Streak 4 | . 4 . Penetration Max . | . . . Secondary Targets . | . . . Shots Hit Robots 82 | . 82 . Core Hits 31 | . 31 . Critical Kills 1 | . 1 . Critical Parts Destroyed . | . . . Critical Strikes 1 | . 1 . Destroy 1 | . 1 . Melee Attacks . | . . . Impact . | . . . Slashing . | . . . Piercing . | . . . Sneak Attacks . | . . . Combat Hostiles . | . . . Follow-up Attacks . | . . . Damage Inflicted 1230 | . 1230 . Guns 558 | . 558 . Cannons 652 | . 652 . Explosions . | . . . Melee . | . . . Ramming 20 | . 20 . Kinetic 738 | . 738 . Thermal 472 | . 472 . Explosive . | . . . Electromagnetic . | . . . Impact . | . . . Slashing . | . . . Piercing . | . . . Highest Corruption 1 | . 1 1 Average Corruption 1 | . 1 1 Corruption Purged . | . . . Corruption Blocked . | . . . Effects 3 | . 2 1 Message Errors 1 | . 1 . Energy Discharges 2 | . 1 1 Overload Shots . | . . . Overflow Damage . | . . . Projectiles . | . . . Explosions . | . . . Melee . | . . . Knockbacks 4 | . 4 . Impact . | . . . Kinetic 4 | . 4 . Secondary . | . . . Self-Inflicted Damage . | . . . Shots . | . . . Rammed 4 | . 4 . Targets Rammed 5 | . 5 . Kicked . | . . . Crushed 1 | . 1 . Highest Temperature 210 | . 210 . Average Temperature 49 | . 49 . Received Heat Transfer 222 | . 195 27 Siege Activations . | . . . Martial Activations . | . . . Shielding Activations . | . . . Robots Disrupted . | . . . Combat Hostiles . | . . . Robots Corrupted . | . . . Combat Hostiles . | . . . Parts Fried . | . . . Impact Corruptions . | . . . Robots Melted . | . . . Combat Hostiles . | . . . Parts Melted . | . . . Heat Transferred 999 | . 999 . Parts Sabotaged . | . . . Parts Stolen . | . . . Parts Stripped . | . . . Power Chain Reactions . | . . . Alert | -11 -10 -10 ------- Run | Yrd Mat Min Maximum Alert Level . | . . . Low Security (%) 100 | 100 100 100 Level 1 . | . . . Level 2 . | . . . Level 3 . | . . . Level 4 . | . . . Level 5 . | . . . High Security . | . . . Max Security . | . . . Peak Influence 182 | . 182 18 Initial 18 | . . 18 Average 38 | . 42 4 Influence Increases 499 | . 499 . Destroy 0b10 Robot/C 280 | . 280 . Destroy 0b10 Robot/NC 45 | . 45 . Destroy Leader 78 | . 78 . Successful Hack 14 | . 14 . Disable Machine 30 | . 30 . Destroy Structure 7 | . 7 . Lose Combat Pursuer 45 | . 45 . Influence Decreases 499 | . 451 48 Entered New Map 30 | . . 30 Time Decay 459 | . 441 18 Lost Part 10 | . 10 . Squads Dispatched 4 | . 4 . Investigation 1 | . 1 . Extermination . | . . . Reinforcement 3 | . 3 . Assault . | . . . Garrison . | . . . Intercept . | . . . Searches Triggered . | . . . Construction Impeded . | . . . Haulers Reinforced . | . . . Active Scanning Responses . | . . . Cargo Convoy Interrupts . | . . . Stealth | -11 -10 -10 --------- Run | Yrd Mat Min Distress Signals 5 | . 5 . Communications Jammed . | . . . Distress Signals . | . . . Times Spotted 53 | . 48 5 Peak Tracking Total 5 | . 5 4 Tactical Retreats 3 | . 3 . Traps | -11 -10 -10 ------- Run | Yrd Mat Min Traps Triggered 1 | . 1 . Indirectly . | . . . Trap Hack Attempts . | . . . Triggered . | . . . Disarmed . | . . . Reprogrammed . | . . . Reused . | . . . Traps Extracted . | . . . Installed . | . . . Triggered . | . . . Machines | -11 -10 -10 ---------- Run | Yrd Mat Min Machines Disabled 2 | . 2 . Max in Single Turn 1 | . 1 . Machines Repaired . | . . . Machines Dismantled . | . . . Machines Sabotaged . | . . . Overloaded Fab Kills . | . . . Hacking | -11 -10 -10 --------- Run | Yrd Mat Min Machines Accessed 4 | . 4 . Terminals 1 | . 1 . Fabricators . | . . . Repair Stations 1 | . 1 . Recycling Units 2 | . 2 . Scanalyzers . | . . . Garrison Access . | . . . Total Hacks 12 | . 12 . Successful 5 | . 5 . Failed 7 | . 7 . Catastrophic 1 | . 1 . Database Lockouts . | . . . Manual . | . . . Terminals 1 | . 1 . Fabricators . | . . . Repair Stations 3 | . 3 . Recycling Units 8 | . 8 . Scanalyzers . | . . . Garrison Access . | . . . Terminal Hacks 1 | . 1 . Prototype ID Bank 1 | . 1 . Fabricator Hacks . | . . . Repair Station Hacks 1 | . 1 . Scan Component 1 | . 1 . Recycling Unit Hacks 3 | . 3 . Report Inventory 2 | . 2 . Retrieve Components 1 | . 1 . Scanalyzer . | . . . Garrison Access Hacks . | . . . Unauthorized Hacks . | . . . Terminals . | . . . Fabricators . | . . . Repair Stations . | . . . Recycling Units . | . . . Scanalyzers . | . . . Garrison Access . | . . . Data Cores Recovered . | . . . Used . | . . . Hacking Detections 4 | . 4 . Full Trace Events 2 | . 2 . Feedback Events . | . . . Feedback Blocked . | . . . Robot Schematics Acquired . | . . . Robots Built . | . . . Authchips . | . . . Time . | . . . Total Robot Build Rating . | . . . Part Schematics Acquired . | . . . Parts Built . | . . . Authchips . | . . . Time . | . . . Total Part Build Rating . | . . . Parts Repaired . | . . . Time . | . . . Parts Recycled . | . . . Recycled Matter . | . . . Retrieved Matter . | . . . Retrieved Components 3 | . 3 . Parts Scanalyzed . | . . . Part Schematics Acquired . | . . . Parts Damaged . | . . . Bothacking | -11 -10 -10 ------------ Run | Yrd Mat Min Used RIF Installer . | . . . Robots Hacked . | . . . Non-combat . | . . . Combat . | . . . Robot Hacks Applied . | . . . Relay Couplers Released . | . . . Fabnet Peak Effective % . | . . . Robots Rewired . | . . . Allies Hacked . | . . . Hacks Repelled . | . . . Allies | -11 -10 -10 -------- Run | Yrd Mat Min Total Allies . | . . . Largest Group . | . . . Highest-Rated Group . | . . . Highest-Rated Ally . | . . . Total Orders . | . . . Ally Attacks . | . . . Total Damage . | . . . Kills . | . . . Allies Corrupted . | . . . Allies Melted . | . . . Intel | -11 -10 -10 ------- Run | Yrd Mat Min Active Infowar (turns) . | . . . Robot Analysis Total . | . . . Derelict Logs Recovered . | . . . Drone Launches . | . . . Drone Recoveries . | . . . Exploration | -11 -10 -10 ------------- Run | Yrd Mat Min Turns Passed 2592 | 143 2332 117 Spaces Moved 1409 | 83 1214 112 Core 5 | 4 . 1 Treads 1293 | 79 1214 . Legs . | . . . Wheels 111 | . . 111 Hover . | . . . Flight . | . . . Fastest Speed 50 | 50 160 95 Average Speed 154 | 154 160 98 Slowest Speed 400 | 160 160 400 Overloaded Moves . | . . . Propulsion Burnouts . | . . . Robots Hopped . | . . . Potential Cave-ins . | . . . Cave-ins Triggered . | . . . Exploration Rate (%) 46 | 7 98 34 Regions Visited 2 Branch Regions 1 Pre-discovered Areas . | . . . Known Exits Taken . | . . . Unknown Exits Taken 2 | 1 1 . Scrap Searched . | . . . Spaces Dug 4 | . 4 . Terrain Destroyed 5 | . 5 . Melee . | . . . Projectile 5 | . 5 . AOE . | . . . Terrain Rammed . | . . . Walls Destroyed . | . . . Machines Disabled . | . . . Actions | -11 -10 -10 --------- Run | Yrd Mat Min Total 1651 | 94 1440 117 Wait 87 | . 87 . Move 1407 | 82 1213 112 Hop . | . . . Pick Up 13 | 5 7 1 Fast Attach 12 | 6 6 . Attach . | . . . Detach 4 | . 4 . Swap 14 | 1 9 4 Drop 10 | . 10 . Fire 99 | . 99 . Melee . | . . . Ram . | . . . Kick . | . . . Crush 5 | . 5 . Escape Stasis . | . . . Rewire . | . . . Trap . | . . . Miscellaneous . | . . . Route ------- -11/Scrapyard -10/Materials (discovered 4 exits: [*Mat x3] / [*Min]) -10/Mines History --------- Turn | Location | Event 7 | -11/Scrapyard | Discovered new exit (range 15) 144 | -11/Scrapyard | Entered Materials 323 | -10/Materials | Build established: Mutant 481 | -10/Materials | Discovered new exit (range 13) 764 | -10/Materials | Discovered new exit (range 11) 1882 | -10/Materials | Discovered new exit (range 10) 2316 | -10/Materials | Discovered new exit (range 7) 2476 | -10/Materials | Entered Mines 2520 | -10/Mines | A weapon hastily lodged in a ceiling crevice suddenly fell to the ground 2564 | -10/Mines | Assembled infested the area 2587 | -10/Mines | Core integrity fell below 50% 2593 | -10/Mines | Core integrity fell below 20% 2593 | -10/Mines | Destroyed by D-53 Grenadier with Mini Grenade Launcher Last Messages --------------- LOCATION=UNKNOWN GOAL=ESCAPE 02520_ A Mak. Axe has been hastily shoved under some rubble with a note attached: "Chop chop!" 02522_ Acquired Mak. Axe. 02524_ System corrupted: Energy discharge (-87). 02540_ T-07 Excavator is excavating. 02564_ ALERT: Infestation in the mines, dispatching Demolisher response squad. 02570_ K-01 Serf collects debris. 02580_ C-30 ARC bursts open, deploying its payload. 02580_ D-53 Grenadier unfolds itself. 02582_ K-01 Serf destroyed. 02584_ Ion Engine destroyed. 02586_ Wheel destroyed. 02589_ Lgt. Cannon destroyed. 02591_ U-05 Engineer lays Concrete. 02592_ U-05 Engineer builds a Wall. 02593_ The unstable cave ceiling collapses. Map ----- +----------------------------------------------------+ | | | | | | | ?????????????????????????????????????????????????? | | ?????????????????????????????????????????????????? | | ?????????????????????????????????????????????????? | | ##???????????????????????????????????????????????? | | ##?????###??????????????????????????????????????? | | ##???# ##?????????????????????????????????????? | | ##?# #####?????????????????????????????????? | | ## #?????????????????????????????????? | | ??# #?????????????????????????????????? | | #????# ##????????????????????????????????? | | #??????# #######??????????????????????????? | | #???????# #??????????????????????????? | | #??????## #??????????####### ####????? | | ##?????## #?????????????# ?????? | | ##??????# #????????????## % ?????????? | | ###???????# ##???????????## g ##???????????? | | #????????## ##??????????### g ##??????????? | | #????##### ##?????????### #??????????? | | #???## ##????##### dd ##??????????? | | #??## ###### #??????????? | | #?## ## #??????????? | | #?# ## u #??????????? | | #?# #### @ ##??????????? | | #?## ##??# #???????????? | | #??## #???# ##???????????? | | #???# #???## ##????????????? | | ????# #????### #### # ##?????????????? | | ????# ####???### ##??### ## ###??????????????? | | ????# #?########?????## ### #????????????????? | | ##??#### ### ##?????????# #?# #????????????????? | | ####### ## ##????????# #????????????????? | | #####????# #####????????????????? | | ###??# #????????????????????? | | ########## #????????????????????? | | ##????????# #????????????????????? | | ???????? ##### #######????????????????????? | | ???????# ## #????? ##??????????????????????????? | | ???????#??# #??????##???????????????????????????? | | ?????????? ???????????????????????????????????? | | ????????? ???????????????????????????????????? | | ???????? ??????????????????????????????????? | | ??????? ??????????????????????????????????? | | ?????? ??????????????????????????????????? | | ????? #?????????????????????????????????? | | ???? #?????????????????????????????????? | | ????? ? ??????????????????????????????????? | | ???????? ???????????????????????????????????? | +----------------------------------------------------+ Best States ------------- Heat Dissipation 25 Energy Generation 10 Energy Capacity 250 Matter Stores 300 Matter Capacity 300 Sight Range 16 Terrain Scan Density 10 Armor Coverage 150 Evasion (%) 41 Recoil Reduction 2 Item Schematics ----------------- None Robot Schematics ------------------ None Fabricated ------------ Nothing Repaired ---------- Nothing Alien Tech Used ----------------- None Achievements -------------- None Challenges ------------ None Game ------ Seed WaveZhirovCompanion Manual? 0 Play Time 00:18:07 Cumulative 62.9 hours Start 2025.06.20 @ 17:19:25 End 2025.06.20 @ 17:37:08 Sessions 1 Manual Loads 0 Difficulty Rogue Special Mode None Game No. 75 Rogue 75 Adventurer 0 Explorer 0 Win Type - Total 1 Types 1/0/0/0/0/0/0/0/0/0 Lore% 30 Gallery% 36 Achievement% 37 Wizard Run 0 Options --------- Layout 2 ASCII 0 Keyboard 1 Movement Arrows Keybinds 0 Fullscreen 1 Font 24/Proggy Map View 50x44 Zoom Use 0% Tactical HUD 1 Map Filters NONE Filters NONE Steam 1 RUN: 61325f1d-1c93-4141-9685-b51a315a5cfb